bitfinex/quotes_BTCUSD_20251201
["timestamp","ask_amount","ask_price","bid_price","bid_amount"]
[1764575900192,0.24225874,86685.0,86682.0,0.23072837]
[1764575900380,0.24225874,86685.0,86682.0,0.24226479]
[1764575900589,0.24225874,86685.0,86681.0,0.01153655]
[1764575900590,0.01153575,86687.0,86681.0,0.01153655]
[1764575900761,0.24225395,86686.0,86683.0,0.23072512]
[1764575901375,0.24224846,86688.0,86683.0,0.01153628]
[1764575901576,5.888e-05,86689.0,86687.0,0.23071509]
[1764575902221,0.23076986,86689.0,86686.0,0.24224886]
[1764575902489,0.23076986,86689.0,86687.0,0.23071481]
[1764575903024,5.888e-05,86689.0,86687.0,0.23071481]
[1764575903225,5.888e-05,86689.0,86688.0,0.23071244]
[1764575904688,5.888e-05,86689.0,86688.0,0.26956244]
[1764575904824,5.888e-05,86689.0,86688.0,0.24574244]
[1764575905024,5.888e-05,86689.0,86688.0,0.23071244]
[1764575906129,5.888e-05,86689.0,86688.0,0.23171244]
[1764575906546,5.888e-05,86689.0,86688.0,0.25074244]
[1764575906822,5.888e-05,86689.0,86688.0,0.23571244]
[1764575908891,0.57128865,86689.0,86688.0,0.005]
[1764575909056,0.64858966,86689.0,86688.0,0.005]
[1764575909623,0.6660135,86689.0,86688.0,0.004]
[1764575909824,0.01153775,86672.0,86667.0,0.02214841]
[1764575910037,0.01153775,86672.0,86668.0,0.24230339]
[1764575910231,0.24229749,86672.0,86668.0,0.24230339]
[1764575910459,0.24229792,86671.0,86668.0,0.23076543]
[1764575910634,0.24229792,86671.0,86669.0,0.23076254]
[1764575910997,0.00876,86673.0,86671.0,0.23075609]
[1764575912259,0.00876,86673.0,86669.0,0.01153815]
[1764575912260,0.2307551,86672.0,86669.0,0.01153815]
[1764575912464,0.01153788,86671.0,86668.0,0.004]
[1764575912674,0.24229836,86670.0,86666.0,0.24230944]
[1764575912884,0.23076344,86669.0,86666.0,0.24230944]
[1764575913201,0.25105072,86673.0,86669.0,0.23076077]
[1764575913202,0.00876,86673.0,86669.0,0.23076077]
[1764575913346,0.23951464,86673.0,86669.0,0.24229892]
[1764575913550,0.23075584,86672.0,86669.0,0.24229892]
[1764575913758,0.23075584,86672.0,86669.0,0.23076164]
[1764575914613,0.23075779,86671.0,86668.0,0.01153828]
[1764575914942,0.01153801,86670.0,86666.0,0.001]
[1764575915080,0.01153948,86659.0,86653.0,0.03442]
[1764575915282,0.01153948,86659.0,86653.0,0.24257353]
[1764575915283,0.24233398,86658.0,86653.0,0.24257353]
[1764575915484,0.24233398,86658.0,86654.0,0.24234285]
[1764575915688,0.24232357,86661.0,86657.0,0.03862974]
[1764575915892,0.01153908,86662.0,86658.0,0.23079227]
[1764575916086,0.23078646,86661.0,86658.0,0.230792]
[1764575916428,5.886e-05,86661.0,86660.0,0.23078698]
[1764575916594,5.886e-05,86661.0,86660.0,0.26875698]
[1764575918635,5.886e-05,86661.0,86660.0,0.26975698]
[1764575918794,5.886e-05,86661.0,86660.0,0.27375698]
[1764575935702,5.886e-05,86661.0,86660.0,0.23578698]
[1764575936749,0.23084318,86661.0,86660.0,0.005]
[1764575936980,5.886e-05,86661.0,86660.0,0.27566698]
[1764575937184,5.886e-05,86661.0,86660.0,0.02042]
[1764575937338,5.886e-05,86661.0,86660.0,0.27566698]
[1764575937694,5.886e-05,86661.0,86660.0,0.02042]
[1764575938682,5.886e-05,86661.0,86660.0,0.03288]
[1764575939509,5.886e-05,86661.0,86660.0,0.26366698]
[1764575939758,5.886e-05,86661.0,86660.0,0.28812698]
[1764575941310,5.886e-05,86661.0,86660.0,0.03288]
[1764575941460,5.886e-05,86661.0,86660.0,0.26366698]
[1764575941669,5.886e-05,86661.0,86660.0,0.03288]
[1764575941897,5.886e-05,86661.0,86660.0,0.005]
[1764575942215,0.23084318,86661.0,86660.0,0.005]
[1764575943292,0.23960318,86661.0,86660.0,0.004]
[1764575943539,0.24836318,86661.0,86660.0,0.004]
[1764575943754,0.23081979,86648.0,86646.0,0.00732]
[1764575943959,0.24235897,86649.0,86646.0,0.00732]
[1764575944170,0.23082271,86647.0,86643.0,0.02400161]
[1764575944368,0.24235384,86651.0,86646.0,0.24236445]
[1764575944622,0.2423395,86656.0,86648.0,0.10396612]
[1764575944865,0.2423434,86654.0,86651.0,0.01542]
[1764575945064,0.23080609,86653.0,86651.0,0.01542]
[1764575945193,0.24234064,86655.0,86651.0,0.28223106]
[1764575945442,0.00876,86660.0,86655.0,0.02788]
[1764575945645,0.23079757,86657.0,86655.0,0.02788]
[1764575945874,0.00876,86660.0,86655.0,0.02788]
[1764575946215,0.00876,86660.0,86657.0,0.01153974]
[1764575946511,0.00876,86660.0,86659.0,0.23078964]
[1764575946882,5.886e-05,86661.0,86660.0,0.23078698]
[1764575947087,5.886e-05,86661.0,86660.0,0.27066698]
[1764575948330,5.886e-05,86661.0,86660.0,0.24620698]
[1764575948692,5.886e-05,86661.0,86660.0,0.27066698]
[1764575949405,5.886e-05,86661.0,86660.0,0.27466698]
[1764575962153,5.886e-05,86661.0,86660.0,0.67466698]
[1764575962539,5.886e-05,86661.0,86660.0,0.67166698]
[1764575962860,5.886e-05,86661.0,86660.0,0.67966698]
[1764575966651,5.886e-05,86661.0,86660.0,1.00266698]
[1764575967073,5.886e-05,86661.0,86660.0,1.03734751]
[1764575967967,5.886e-05,86661.0,86660.0,1.0998705]
[1764575968405,5.886e-05,86661.0,86660.0,1.1071905]
[1764575968586,5.886e-05,86661.0,86660.0,1.0998705]
[1764575968785,5.886e-05,86661.0,86660.0,1.1071905]
[1764575969185,5.886e-05,86661.0,86660.0,1.0981905]
[1764575969588,5.886e-05,86661.0,86660.0,1.1008705]
[1764575969902,5.886e-05,86661.0,86660.0,1.1081905]
[1764575970487,5.886e-05,86661.0,86660.0,1.1101905]
[1764575971535,5.886e-05,86661.0,86660.0,1.04034751]
[1764575971728,5.886e-05,86661.0,86660.0,1.04766751]
[1764575982770,0.00882,86705.0,86660.0,1.04766751]
[1764575982975,5.887e-05,86701.0,86695.0,0.01153469]
[1764575983194,5.887e-05,86701.0,86692.0,0.01153508]
[1764575983397,0.00882,86700.0,86688.0,0.01153562]
[1764575983599,0.01153455,86696.0,86688.0,0.01153562]
[1764575983773,0.01153455,86696.0,86689.0,0.01153548]
[1764575983974,0.01153455,86696.0,86690.0,0.01153535]
[1764575984197,0.24222652,86696.0,86695.0,0.001]
[1764575984403,0.24222652,86696.0,86692.0,0.01153508]
[1764575984807,0.01153442,86697.0,86693.0,0.01153495]
[1764575985017,0.24222442,86697.0,86692.0,0.01153508]
[1764575985223,0.01153469,86695.0,86691.0,0.24223875]
[1764575985731,0.25104442,86697.0,86691.0,0.24223875]
[1764575985935,0.24222442,86697.0,86692.0,0.01153508]
[1764575986143,0.24222946,86695.0,86691.0,0.01153522]
[1764575986339,0.24222946,86695.0,86691.0,0.24223739]
[1764575986914,0.24223222,86694.0,86693.0,0.002]
[1764575987115,0.24223222,86694.0,86691.0,0.01153522]
[1764575987505,0.25105687,86692.0,86691.0,0.002]
[1764575987710,0.25105687,86692.0,86688.0,0.01153562]
[1764575987927,0.07674079,86691.0,86688.0,0.01153562]
[1764575988143,0.00882,86689.0,86688.0,0.24224737]
[1764575989201,0.01153495,86693.0,86689.0,0.01153548]
[1764575989408,0.01153495,86693.0,86690.0,0.24224182]
[1764575989701,0.01153495,86693.0,86691.0,0.23070393]
[1764575990014,0.2422401,86691.0,86687.0,0.2422503]
[1764575990228,0.01153522,86691.0,86688.0,0.24624644]
[1764575990378,0.01153522,86691.0,86688.0,0.24224644]
[1764575990580,0.24223827,86692.0,86688.0,0.24224644]
[1764575990820,0.24222924,86695.0,86691.0,0.01453522]
[1764575991020,0.24222924,86695.0,86691.0,0.01153522]
[1764575991239,0.24222924,86695.0,86692.0,0.23070162]
[1764575991404,0.01153455,86696.0,86693.0,0.23069859]
[1764575991601,0.24222585,86696.0,86692.0,0.2422367]
[1764575991801,0.24222585,86696.0,86691.0,0.24423818]
[1764575992041,0.24222867,86695.0,86692.0,0.23070162]
[1764575992257,0.01153469,86695.0,86691.0,0.01353522]
[1764575992495,0.00882,86692.0,86691.0,0.002]
[1764575992668,0.23952179,86692.0,86691.0,0.002]
[1764575992846,0.24834179,86692.0,86691.0,0.002]
[1764575993083,0.23070993,86689.0,86686.0,0.23071665]
[1764575993287,0.24224829,86688.0,86683.0,0.24226017]
[1764575993494,0.01153628,86683.0,86678.0,0.01153695]
[1764575993686,0.00882,86679.0,86676.0,0.242281]
[1764575993888,0.00882,86679.0,86677.0,0.09242518]
[1764575994100,0.00882,86679.0,86677.0,0.32316669]
[1764575994289,0.00882,86679.0,86678.0,0.23073905]
[1764575995409,0.23953605,86687.0,86683.0,0.23072574]
[1764575995905,0.00882,86687.0,86684.0,0.24225901]
[1764575996931,0.00882,86687.0,86686.0,0.23071776]
[1764575997122,0.00882,86687.0,86685.0,0.23071991]
[1764575997352,0.00882,86687.0,86686.0,0.23071776]
[1764575998549,0.59991333,86696.0,86691.0,0.01153522]
[1764575998897,0.23069873,86694.0,86691.0,0.01153522]
[1764575999102,0.23069873,86694.0,86690.0,0.24223727]
[1764575999103,0.2422344,86693.0,86688.0,0.24224539]
[1764575999267,0.01153522,86691.0,86686.0,0.24225138]
[1764575999470,0.23070713,86690.0,86686.0,0.24225138]
[1764575999637,0.23070713,86690.0,86687.0,0.24225012]
[1764576000245,0.23070713,86690.0,86682.0,0.02288642]
[1764576000246,0.23074214,86677.0,86671.0,0.24229046]
[1764576000455,0.01153708,86677.0,86673.0,0.01153761]
[1764576000680,0.24227956,86677.0,86673.0,0.24228945]
[1764576000860,0.24226769,86681.0,86675.0,0.01153735]
[1764576001014,0.24227328,86679.0,86674.0,0.01153748]
[1764576001214,0.24227328,86679.0,86671.0,0.23075581]
[1764576001215,0.24227612,86678.0,86671.0,0.23075581]
[1764576001401,0.24227612,86678.0,86671.0,0.003]
[1764576001402,0.01153748,86674.0,86671.0,0.003]
[1764576001602,0.23957503,86672.0,86671.0,0.003]
[1764576002240,0.24839503,86672.0,86671.0,0.003]
[1764576002447,0.33938698,86672.0,86671.0,0.003]
[1764576002646,0.23076998,86667.0,86663.0,0.01153894]
[1764576002881,0.24230432,86668.0,86663.0,0.01153894]
[1764576002882,0.24230432,86668.0,86664.0,0.24231335]
[1764576003091,0.01153788,86671.0,86663.0,0.01153894]
[1764576003330,0.01153961,86658.0,86652.0,0.24234854]
[1764576003530,0.2423209,86662.0,86656.0,0.23079518]
[1764576003666,0.23079039,86659.0,86653.0,0.23080369]
[1764576003872,0.23078477,86661.0,86658.0,0.01153961]
[1764576004072,0.23078477,86661.0,86656.0,0.24233496]
[1764576004295,0.23958914,86667.0,86658.0,0.24233171]
[1764576004296,0.24232045,86664.0,86658.0,0.24233171]
[1764576004496,0.24232045,86664.0,86657.0,0.24214487]
[1764576004497,0.01153894,86663.0,86657.0,0.24214487]
[1764576004717,0.24232575,86661.0,86657.0,0.25368461]
[1764576005335,0.23079231,86658.0,86657.0,0.01135]
[1764576005554,0.24233179,86659.0,86652.0,0.00039277]
[1764576005810,0.24844562,86653.0,86652.0,0.00039277]
[1764576006150,0.23962562,86653.0,86652.0,0.00039277]
[1764576006575,0.00882,86653.0,86652.0,0.00039277]
[1764576007006,0.24234237,86655.0,86652.0,0.01664277]
[1764576007153,0.23080562,86653.0,86652.0,0.00139277]
[1764576007508,0.24233613,86657.0,86652.0,0.01664277]
[1764576007731,0.24234094,86655.0,86652.0,0.00139277]
[1764576008570,0.23080296,86654.0,86652.0,0.00139277]
[1764576008712,0.23080296,86654.0,86652.0,0.00039277]
[1764576008895,0.23080296,86654.0,86652.0,0.00339277]
[1764576009096,0.23962562,86653.0,86652.0,0.00339277]
[1764576009295,0.23962562,86653.0,86652.0,0.00039277]
[1764576009580,0.23962562,86653.0,86652.0,0.00239277]
[1764576009963,0.24844562,86653.0,86652.0,0.00039277]
[1764576010167,0.24844562,86653.0,86652.0,0.00339277]
[1764576010311,0.64706604,86653.0,86652.0,0.00339277]
[1764576010520,0.66995604,86653.0,86652.0,0.00339277]
[1764576010923,0.59433562,86653.0,86652.0,0.00339277]
[1764576012085,0.59433562,86653.0,86652.0,0.00039277]
[1764576012449,0.59433562,86653.0,86652.0,0.00139277]
[1764576015017,0.26983562,86653.0,86652.0,0.00139277]
[1764576015250,0.24694562,86653.0,86652.0,0.00139277]
[1764576015455,0.25848803,86653.0,86652.0,0.00139277]
[1764576015816,0.25576562,86653.0,86652.0,0.00139277]
[1764576017539,0.65511804,86653.0,86652.0,0.00139277]
[1764576017994,0.57876562,86653.0,86652.0,0.00139277]
[1764576020754,0.64128861,86653.0,86652.0,0.00139277]
[1764576021204,0.01153974,86657.0,86652.0,0.00139277]
[1764576021416,0.01153961,86658.0,86653.0,0.24234363]
[1764576021584,0.00882,86660.0,86652.0,0.01293318]
[1764576021946,0.00882,86660.0,86659.0,0.23078964]
[1764576022078,0.00732,86668.0,86662.0,0.01153908]
[1764576022300,0.01153855,86666.0,86662.0,0.24231545]
[1764576022506,0.24231298,86665.0,86660.0,0.24232607]
[1764576022706,0.23078658,86661.0,86658.0,0.0116]
[1764576022889,0.24232579,86661.0,86657.0,0.24233251]
[1764576023108,0.24232865,86660.0,86657.0,0.24233251]
[1764576023314,0.01153894,86663.0,86659.0,0.24232912]
[1764576023519,0.23078168,86662.0,86659.0,0.24232912]
[1764576023941,0.24232076,86662.0,86659.0,0.24232912]
[1764576024535,0.01153908,86662.0,86660.0,0.23078673]
[1764576024765,0.24231806,86663.0,86660.0,0.23078673]
[1764576025382,0.01153908,86662.0,86658.0,0.24232688]
[1764576025545,0.24232303,86662.0,86659.0,0.23078926]
[1764576025751,0.24232303,86662.0,86660.0,0.001]
[1764576026268,0.24232303,86662.0,86659.0,0.23078926]
[1764576026842,0.24232303,86662.0,86659.0,0.24232874]
[1764576027043,0.01153908,86662.0,86659.0,0.24232874]
[1764576027252,0.01153908,86662.0,86660.0,0.23078566]
[1764576028107,0.24231833,86663.0,86660.0,0.243325]
[1764576028325,0.24231833,86663.0,86660.0,0.242325]
[1764576028567,0.23078238,86662.0,86659.0,0.01153948]
[1764576028739,0.23078432,86661.0,86660.0,0.001]
[1764576028943,0.23080562,86653.0,86652.0,0.00039277]
[1764576029262,0.00882,86653.0,86652.0,0.00039277]
[1764576029469,0.03116092,86676.0,86670.0,0.01153801]
[1764576029664,0.01153615,86684.0,86679.0,0.0116]
[1764576029824,0.01153642,86682.0,86679.0,0.0116]
[1764576030035,0.25107315,86687.0,86680.0,0.01153668]
[1764576030229,0.01153588,86686.0,86681.0,0.01153655]
[1764576030435,0.24225937,86684.0,86681.0,0.23073044]
[1764576030852,7.699e-05,86684.0,86682.0,0.23072646]
[1764576031053,7.699e-05,86684.0,86683.0,0.23072574]
[1764576031258,0.24233887,86684.0,86680.0,0.24226867]
[1764576031609,0.24233887,86684.0,86681.0,0.002]
[1764576031914,7.699e-05,86684.0,86681.0,0.24226654]
[1764576032033,7.699e-05,86684.0,86682.0,0.23072833]
[1764576032471,7.699e-05,86684.0,86682.0,0.23272833]
[1764576033509,7.699e-05,86684.0,86682.0,0.23072833]
[1764576034285,7.699e-05,86684.0,86683.0,0.23072574]
[1764576034747,7.699e-05,86684.0,86682.0,0.23272833]
[1764576034953,7.699e-05,86684.0,86683.0,0.23072574]
[1764576035156,7.699e-05,86684.0,86682.0,0.23272833]
[1764576035361,0.01153642,86682.0,86671.0,0.01153788]
[1764576035502,0.01153748,86674.0,86670.0,0.01153801]
[1764576035705,0.24228745,86674.0,86670.0,0.24229752]
[1764576035908,0.23075842,86671.0,86667.0,0.01153841]
[1764576036137,0.01153801,86670.0,86666.0,0.0116]
[1764576036338,0.24230288,86669.0,86666.0,0.0116]
[1764576036536,0.01153815,86669.0,86666.0,0.0116]
[1764576036744,0.01153761,86673.0,86669.0,0.01153815]
[1764576036944,0.01153788,86671.0,86666.0,0.01153855]
[1764576037138,0.23076268,86670.0,86667.0,0.23076798]
[1764576037380,0.24230069,86670.0,86668.0,0.23076547]
[1764576037581,0.23076405,86669.0,86666.0,0.24230788]
[1764576037826,0.01153828,86668.0,86665.0,0.23077278]
[1764576038037,0.2423062,86668.0,86666.0,0.003]
[1764576038275,0.01153801,86670.0,86666.0,0.23377089]
[1764576038448,0.01153921,86661.0,86658.0,0.01153961]
[1764576038653,0.24232044,86663.0,86659.0,0.24232878]
[1764576038815,0.23079038,86659.0,86657.0,0.00732]
[1764576038997,0.23078485,86661.0,86657.0,0.23079245]
[1764576039200,0.24232861,86660.0,86657.0,0.24233219]
[1764576039637,0.24232861,86660.0,86656.0,0.02313988]
[1764576039857,0.23079423,86658.0,86656.0,0.0116]
[1764576040043,0.01154041,86652.0,86647.0,0.01886108]
[1764576040216,0.01154041,86652.0,86648.0,0.09242518]
[1764576040416,0.24235292,86651.0,86648.0,0.11639518]
[1764576040659,0.01154041,86652.0,86648.0,0.09242518]
[1764576040956,0.23080695,86653.0,86651.0,0.01584]
[1764576041172,0.23080695,86653.0,86651.0,0.01623277]
[1764576041925,0.24234561,86654.0,86651.0,0.24704347]
[1764576042121,0.24231667,86664.0,86653.0,0.01173]
[1764576042380,0.23961514,86657.0,86653.0,0.25407333]
[1764576042555,0.23961514,86657.0,86654.0,0.23080243]
[1764576042975,0.02035974,86657.0,86653.0,0.01173]
[1764576043178,0.24233794,86656.0,86653.0,0.01173]
[1764576043770,0.2308022,86655.0,86654.0,0.003]
[1764576044257,0.2308064,86653.0,86651.0,0.00039277]
[1764576044448,0.24234465,86654.0,86651.0,0.23120288]
[1764576045148,0.01154001,86655.0,86651.0,0.24274342]
[1764576045553,0.01154014,86654.0,86651.0,0.00039277]
[1764576045938,0.23080619,86653.0,86651.0,0.00039277]
[1764576046157,0.23079833,86656.0,86654.0,0.003]
[1764576046380,0.23079833,86656.0,86653.0,0.24664304]
[1764576047005,0.23080064,86655.0,86653.0,0.01584]
[1764576047456,0.23080064,86655.0,86654.0,0.003]
[1764576047632,0.23080064,86655.0,86652.0,0.23080821]
[1764576047843,0.23080064,86655.0,86653.0,0.003]
[1764576048223,0.24233821,86656.0,86653.0,0.003]
[1764576048224,0.24233821,86656.0,86653.0,0.23380496]
[1764576048421,0.01153988,86656.0,86653.0,0.23380496]
[1764576048612,0.24233906,86656.0,86653.0,0.23380496]
[1764576049027,0.24233906,86656.0,86653.0,0.23080496]
[1764576049340,0.02035894,86663.0,86655.0,0.2461298]
[1764576049538,0.23079304,86658.0,86656.0,0.01533]
[1764576049896,0.2307903,86659.0,86656.0,0.24612758]
[1764576050079,0.23078977,86659.0,86656.0,0.23079758]
[1764576050282,0.24232925,86659.0,86656.0,0.24233746]
[1764576050805,0.24233414,86658.0,86654.0,0.24233512]
[1764576051126,0.23079623,86657.0,86656.0,0.003]
[1764576051339,0.24233414,86658.0,86656.0,0.003]
[1764576053416,0.23078754,86660.0,86658.0,0.23079196]
[1764576053768,0.23078754,86660.0,86657.0,0.24233377]
[1764576054171,0.24232688,86660.0,86657.0,0.003]
[1764576054368,0.01153934,86660.0,86658.0,0.23079163]
[1764576054685,0.24232847,86660.0,86657.0,0.003]
[1764576055104,0.23079033,86659.0,86657.0,0.23379435]
[1764576055307,0.24232847,86660.0,86657.0,0.24233409]
[1764576055704,0.24232847,86660.0,86657.0,0.24533409]
[1764576056039,0.01153934,86660.0,86657.0,0.23079371]
[1764576056183,0.01153934,86660.0,86657.0,0.23379371]
[1764576056483,0.01153934,86660.0,86657.0,0.24233345]
[1764576056685,0.01153934,86660.0,86656.0,0.24233539]
[1764576056686,0.24232702,86660.0,86656.0,0.24233539]
[1764576056884,0.24232702,86660.0,86657.0,0.23379292]
[1764576057125,0.24232702,86660.0,86658.0,0.23079168]
[1764576057326,0.00882,86663.0,86658.0,0.01153961]
[1764576057526,0.00882,86663.0,86660.0,0.01153934]
[1764576057727,0.01153828,86668.0,86663.0,0.01153894]
[1764576057962,0.24231006,86666.0,86662.0,0.0271]
[1764576058183,0.01153841,86667.0,86662.0,0.01177]
[1764576058362,0.23079763,86656.0,86653.0,0.00732]
[1764576058558,0.23080296,86654.0,86653.0,0.00732]
[1764576058715,0.2423384,86656.0,86653.0,0.00732]
[1764576059105,0.23080136,86655.0,86653.0,0.00732]
[1764576059433,0.23080296,86654.0,86653.0,0.00732]
[1764576059834,0.23080296,86654.0,86653.0,0.01032]
[1764576060069,0.23080763,86653.0,86651.0,0.00039277]
[1764576060442,0.63379128,86652.0,86651.0,0.00039277]
[1764576061075,0.63369128,86652.0,86651.0,0.00039277]
[1764576062554,0.63369128,86652.0,86651.0,0.00139277]
[1764576062881,0.6332043,86652.0,86651.0,0.00139277]
[1764576065629,0.55829131,86652.0,86651.0,0.00139277]
[1764576065852,0.55322131,86652.0,86651.0,0.00139277]
[1764576066059,0.55829131,86652.0,86651.0,0.00139277]
[1764576066205,0.73206845,86652.0,86651.0,0.00139277]
[1764576066437,0.6258843,86652.0,86651.0,0.00139277]
[1764576067073,0.6208143,86652.0,86651.0,0.00139277]
[1764576067270,0.6258843,86652.0,86651.0,0.00139277]
[1764576067952,0.6208143,86652.0,86651.0,0.00139277]
[1764576068154,0.64571339,86652.0,86651.0,0.00139277]
[1764576068554,0.5831904,86652.0,86651.0,0.00139277]
[1764576069619,0.55829131,86652.0,86651.0,0.00139277]
[1764576069836,0.01153988,86656.0,86651.0,0.01672277]
[1764576070042,0.23080829,86652.0,86651.0,0.01672277]
[1764576070297,0.23080829,86652.0,86651.0,0.00139277]
[1764576070503,0.24094829,86652.0,86651.0,0.00139277]
[1764576070646,0.6366524,86652.0,86651.0,0.00139277]
[1764576070858,0.56394829,86652.0,86651.0,0.00039277]
[1764576071054,0.56394829,86652.0,86651.0,0.00139277]
[1764576071225,0.56394829,86652.0,86651.0,0.00039277]
[1764576071636,0.56394829,86652.0,86651.0,0.00239277]
[1764576072080,0.55380829,86652.0,86651.0,0.00239277]
[1764576072645,0.55887829,86652.0,86651.0,0.00239277]
[1764576073174,0.23080829,86652.0,86651.0,0.00239277]
[1764576074598,0.23587829,86652.0,86651.0,0.00239277]
[1764576074750,0.23080829,86652.0,86651.0,0.00239277]
[1764576075487,0.24234331,86654.0,86651.0,0.00239277]
[1764576075626,0.23080829,86652.0,86651.0,0.00239277]
[1764576076048,0.23078027,86663.0,86651.0,0.05413331]
[1764576076341,0.01153948,86659.0,86656.0,0.24233634]
[1764576076462,0.23078544,86661.0,86657.0,0.23079239]
[1764576076667,0.23078544,86661.0,86658.0,0.01153961]
[1764576076853,0.24232091,86662.0,86659.0,0.2307888]
[1764576077287,0.01153934,86660.0,86657.0,0.01153974]
[1764576077506,0.01153934,86660.0,86658.0,0.23079209]
[1764576078053,0.24231595,86664.0,86658.0,0.01153961]
[1764576078383,0.230784,86662.0,86659.0,0.23178952]
[1764576078533,0.01153908,86662.0,86657.0,0.24233405]
[1764576078740,0.01153908,86662.0,86648.0,0.23081822]
[1764576078741,0.23586497,86658.0,86645.0,0.01154134]
[1764576078969,0.00507,86652.0,86648.0,0.24235726]
[1764576079175,0.00507,86652.0,86645.0,0.24236778]
[1764576079176,0.23587829,86652.0,86645.0,0.24236778]
[1764576079354,0.00507,86652.0,86648.0,0.01154094]
[1764576079540,0.23080595,86653.0,86649.0,0.24235659]
[1764576079742,0.23080664,86653.0,86650.0,0.23081315]
[1764576079951,0.24234521,86654.0,86651.0,0.23120175]
[1764576080151,0.2423429,86655.0,86651.0,0.24274229]
[1764576080353,0.01154014,86654.0,86651.0,0.01193331]
[1764576080552,0.01154014,86654.0,86651.0,0.24274386]
[1764576080757,0.23080641,86653.0,86651.0,0.00039277]
[1764576080961,0.01153988,86656.0,86651.0,0.00339277]
[1764576081165,0.24234067,86655.0,86651.0,0.24574179]
[1764576081587,0.2423449,86654.0,86651.0,0.00339277]
[1764576081799,0.23080787,86653.0,86651.0,0.00039277]
[1764576082352,0.2423434,86654.0,86651.0,0.00339277]
[1764576082506,0.23080708,86653.0,86651.0,0.00339277]
[1764576082835,0.01153988,86656.0,86651.0,0.24574249]
[1764576082996,0.23080251,86655.0,86652.0,0.24234622]
[1764576083537,0.24234252,86655.0,86652.0,0.24234622]
[1764576083735,0.23080385,86654.0,86652.0,0.01154041]
[1764576083950,0.23080385,86654.0,86651.0,0.24274397]
[1764576083951,0.23080615,86653.0,86651.0,0.00039277]
[1764576084144,0.23587829,86652.0,86651.0,0.00039277]
[1764576085226,0.23587829,86652.0,86651.0,0.00439277]
[1764576085596,0.00507,86652.0,86651.0,0.00439277]
[1764576085948,0.23080615,86653.0,86651.0,0.00439277]
[1764576086173,0.24232716,86660.0,86656.0,0.24233524]
[1764576086370,0.2307959,86657.0,86654.0,0.24234161]
[1764576086750,0.23079789,86656.0,86654.0,0.01154014]
[1764576087559,0.01153934,86660.0,86656.0,0.01153988]
[1764576087912,0.01153934,86660.0,86654.0,0.01154014]
[1764576087913,0.01153961,86658.0,86654.0,0.003]
[1764576088068,0.01153974,86657.0,86654.0,0.003]
[1764576088248,0.23078366,86662.0,86654.0,0.01454014]
[1764576088457,0.01153921,86661.0,86656.0,0.01153988]
[1764576088674,0.23078698,86660.0,86656.0,0.24233662]
[1764576089056,0.01153934,86660.0,86657.0,0.01153974]
[1764576089249,0.01153934,86660.0,86658.0,0.23079078]
[1764576089478,0.2423285,86661.0,86658.0,0.23079078]
[1764576089682,0.2423285,86661.0,86658.0,0.24233039]
[1764576090061,0.01153908,86662.0,86659.0,0.2307874]
[1764576090062,0.24232248,86662.0,86659.0,0.2307874]
[1764576090323,0.24232248,86662.0,86658.0,0.24233039]
[1764576090540,0.24232248,86662.0,86656.0,0.01153988]
[1764576090541,0.01153934,86660.0,86656.0,0.01153988]
[1764576090682,0.01153934,86660.0,86658.0,0.002]
[1764576090683,0.23078987,86659.0,86658.0,0.002]
[1764576091047,0.24233417,86658.0,86655.0,0.01154001]
[1764576091308,0.00507,86655.0,86654.0,0.2423421]
[1764576091525,0.01154001,86655.0,86650.0,0.01154068]
[1764576091697,0.24234133,86655.0,86652.0,0.23080812]
[1764576091895,0.28158094,86654.0,86651.0,0.00039277]
[1764576092090,0.05077564,86654.0,86652.0,0.23080758]
[1764576092528,0.24233554,86657.0,86653.0,0.24234459]
[1764576092686,0.23080053,86655.0,86652.0,0.23080758]
[1764576092899,0.24234273,86656.0,86653.0,0.23080363]
[1764576093302,0.23080031,86655.0,86654.0,0.003]
[1764576093678,0.23080031,86655.0,86652.0,0.24234799]
[1764576094077,0.2423433,86654.0,86653.0,0.003]
[1764576094279,0.23080829,86652.0,86651.0,0.00039277]
[1764576094683,0.23587829,86652.0,86651.0,0.00039277]
[1764576095039,0.23080829,86652.0,86651.0,0.00039277]
[1764576096663,0.23080829,86652.0,86651.0,0.00439277]
[1764576098425,0.23587829,86652.0,86651.0,0.00439277]
[1764576100755,0.00507,86652.0,86651.0,0.00439277]
[1764576100955,0.23080069,86655.0,86652.0,0.01154041]
[1764576101205,0.23079979,86656.0,86653.0,0.23080428]
[1764576101412,0.00507,86653.0,86651.0,0.00439277]
[1764576101725,0.23587829,86652.0,86651.0,0.00439277]
[1764576102833,0.23587829,86652.0,86651.0,0.00039277]
[1764576102982,0.24094829,86652.0,86651.0,0.00039277]
[1764576103481,0.23587829,86652.0,86651.0,0.00039277]
[1764576103666,0.55887829,86652.0,86651.0,0.00039277]
[1764576103873,0.74821902,86652.0,86651.0,0.00439277]
[1764576105348,0.74821902,86652.0,86651.0,0.00039277]
[1764576105710,0.74821902,86652.0,86651.0,0.00139277]
[1764576107342,0.6514218,86652.0,86651.0,0.00139277]
[1764576107771,0.64154875,86652.0,86651.0,0.00139277]
[1764576110802,0.41073514,86652.0,86651.0,0.00139277]
[1764576111118,0.64154343,86652.0,86651.0,0.00139277]
[1764576111942,0.64154343,86652.0,86651.0,0.00039277]
[1764576115501,0.63647343,86652.0,86651.0,0.00039277]
[1764576122191,0.57395044,86652.0,86651.0,0.00039277]
[1764576122412,0.23080775,86653.0,86651.0,0.00039277]
[1764576122615,0.24234426,86654.0,86651.0,0.00039277]
[1764576122771,0.23080575,86653.0,86651.0,0.23120298]
[1764576122956,0.23069035,86653.0,86651.0,0.23120298]
[1764576123195,0.23080829,86652.0,86651.0,0.00039277]
[1764576123395,0.23069035,86653.0,86651.0,0.00039277]
[1764576123918,0.23069035,86653.0,86651.0,0.00139277]
[1764576124335,0.23080829,86652.0,86651.0,0.00139277]
[1764576125159,0.23080829,86652.0,86651.0,0.00039277]
[1764576125565,0.23080829,86652.0,86651.0,0.00139277]
[1764576125877,0.22742229,86652.0,86651.0,0.00139277]
[1764576127149,0.23080578,86653.0,86651.0,0.00139277]
[1764576128119,0.23080578,86653.0,86652.0,0.01633]
[1764576128487,0.323,86660.0,86657.0,0.23079473]
[1764576128641,0.56532863,86660.0,86653.0,0.02787028]
[1764576128838,0.323,86660.0,86655.0,0.01154001]
[1764576129004,0.55378779,86660.0,86655.0,0.01154001]
[1764576129492,0.23078975,86659.0,86656.0,0.24233552]
[1764576129707,0.56532713,86660.0,86657.0,0.23079436]
[1764576129907,0.23079105,86659.0,86656.0,0.24233552]
[1764576130074,0.23079105,86659.0,86657.0,0.23279492]
[1764576130306,0.23079105,86659.0,86657.0,0.23079492]
[1764576130910,0.56532713,86660.0,86657.0,0.23079492]
[1764576131410,0.62340853,86660.0,86657.0,0.23279492]
[1764576132047,0.56532713,86660.0,86657.0,0.23279492]
[1764576132842,0.56532713,86660.0,86657.0,0.23079492]
[1764576133049,0.56532713,86660.0,86656.0,0.24233552]
[1764576133263,0.23079092,86659.0,86657.0,0.002]